fUSD/lending_fUSD_20240712
["ID","MTS","AMOUNT","RATE_DAILY","PERIOD"]
[331818378,1720770666007,-370.48,0.00013917,2]
[331818379,1720770666016,-500.0,0.00013917,2]
[331818380,1720770666026,-585.17,0.00013917,2]
[331818381,1720770666036,-500.0,0.00013917,2]
[331818382,1720770666046,-500.0,0.00013917,2]
[331818383,1720770666056,-500.0,0.00013917,2]
[331818384,1720770666065,-500.0,0.00013917,2]
[331818385,1720770666075,-500.0,0.00013917,2]
[331818386,1720770666085,-500.0,0.00013917,2]
[331818387,1720770666095,-500.0,0.00013917,2]
[331818388,1720770666105,-556.86,0.00013917,2]
[331818389,1720770666115,-428.74,0.00013917,2]
[331818390,1720770666125,-500.0,0.00013917,2]
[331818391,1720770666135,-500.0,0.00013917,2]
[331818392,1720770666145,-500.0,0.00013917,2]
[331818393,1720770666155,-407.34,0.00013917,2]
[331818394,1720770666164,-500.0,0.00013917,2]
[331818395,1720770666174,-500.0,0.00013917,2]
[331818396,1720770666184,-500.0,0.00013917,2]
[331818397,1720770666194,-500.0,0.00013917,2]
[331818398,1720770666205,-500.0,0.00013917,2]
[331818399,1720770666215,-865.7,0.00013917,2]
[331818400,1720770666225,-500.0,0.00013917,2]
[331818401,1720770666234,-500.0,0.00013917,2]
[331818402,1720770666244,-500.0,0.00013917,2]
[331818403,1720770666257,-500.0,0.00013917,2]
[331818404,1720770666266,-500.0,0.00013917,2]
[331818405,1720770666276,-500.0,0.00013917,2]
[331818406,1720770666285,-500.0,0.00013917,2]
[331818407,1720770666295,-500.0,0.00013917,2]
[331818408,1720770666305,-500.0,0.00013917,2]
[331818409,1720770666315,-579.1,0.00013917,2]
[331818410,1720770666326,-500.0,0.00013917,2]
[331818411,1720770666336,-245.08,0.00013917,2]
[331818412,1720770666347,-500.0,0.00013917,2]
[331818413,1720770666357,-665.27,0.00013917,2]
[331818414,1720770666367,-500.0,0.00013917,2]
[331818415,1720770666376,-189.4,0.00013917,2]
[331818416,1720770666387,-167.74,0.00013917,2]
[331818417,1720770666396,-557.22,0.00013917,2]
[331818418,1720770666405,-539.93,0.00013917,2]
[331818419,1720770666414,-500.0,0.00013917,2]
[331818420,1720770666424,-500.0,0.00013917,2]
[331818421,1720770666433,-500.0,0.00013917,2]
[331818422,1720770666443,-644.34,0.00013917,2]
[331818423,1720770666456,-659.81,0.00013917,2]
[331818424,1720770666467,-500.0,0.00013917,2]
[331818425,1720770666476,-500.0,0.00013917,2]
[331818426,1720770666487,-1805.19,0.00013917,2]
[331818427,1720770666499,-376.26,0.00013917,2]
[331818428,1720770666511,-500.0,0.00013917,2]
[331818429,1720770666523,-475.6,0.00013917,2]
[331818430,1720770666532,-500.0,0.00013917,2]
[331818431,1720770666542,-475.21462254,0.00013917,2]
[331818432,1720770666554,-500.0,0.00013917,2]
[331818433,1720770666564,-163.55,0.00013917,2]
[331818434,1720770666575,-500.0,0.00013917,2]
[331818435,1720770666588,-500.0,0.00013917,2]
[331818436,1720770666602,-465.6,0.00013917,2]
[331818437,1720770666612,-278.22,0.00013917,2]
[331818438,1720770666622,-500.0,0.00013917,2]
[331818439,1720770666631,-500.0,0.00013917,2]
[331818440,1720770666642,-500.0,0.00013917,2]
[331818441,1720770666652,-413.3,0.00013917,2]
[331818442,1720770666664,-500.0,0.00013917,2]
[331818443,1720770666676,-500.0,0.00013917,2]
[331818444,1720770666685,-500.0,0.00013917,2]
[331818445,1720770666695,-511.46,0.00013917,2]
[331818446,1720770666704,-500.0,0.00013917,2]
[331818447,1720770666713,-500.0,0.00013917,2]
[331818448,1720770666723,-500.0,0.00013917,2]
[331818449,1720770666732,-500.0,0.00013917,2]
[331818450,1720770666743,-495.48,0.00013917,2]
[331818451,1720770666753,-500.0,0.00013917,2]
[331818452,1720770666763,-500.0,0.00013917,2]
[331818453,1720770666773,-500.0,0.00013917,2]
[331818454,1720770666783,-490.4,0.00013917,2]
[331818455,1720770666792,-500.0,0.00013917,2]
[331818456,1720770666801,-500.0,0.00013917,2]
[331818457,1720770666811,-809.25,0.00013917,2]
[331818458,1720770666820,-500.0,0.00013917,2]
[331818459,1720770666830,-500.0,0.00013917,2]
[331818460,1720770666839,-593.71,0.00013917,2]
[331818461,1720770666848,-423.65,0.00013917,2]
[331818462,1720770666858,-500.0,0.00013917,2]
[331818463,1720770666867,-500.0,0.00013917,2]
[331818464,1720770666878,-500.0,0.00013917,2]
[331818465,1720770666887,-500.0,0.00013917,2]
[331818466,1720770666897,-500.0,0.00013917,2]
[331818467,1720770666906,-500.0,0.00013917,2]
[331818468,1720770666916,-500.0,0.00013917,2]
[331818469,1720770666926,-500.0,0.00013917,2]
[331818470,1720770666936,-717.13,0.00013917,2]
[331818471,1720770666946,-500.0,0.00013917,2]
[331818472,1720770666956,-500.0,0.00013917,2]
[331818473,1720770666965,-500.0,0.00013917,2]
[331818474,1720770666975,-500.0,0.00013917,2]
[331818475,1720770666984,-685.24,0.00013917,2]
[331818476,1720770666994,-546.44,0.00013917,2]
[331818477,1720770667005,-500.0,0.00013917,2]
[331818478,1720770667015,-500.0,0.00013917,2]
[331818479,1720770667025,-150.72,0.00013917,2]
[331818480,1720770667036,-281.52,0.00013917,2]
[331818481,1720770667047,-500.0,0.00013917,2]
[331818482,1720770667056,-500.0,0.00013917,2]
[331818483,1720770667066,-500.0,0.00013917,2]
[331818484,1720770667078,-500.0,0.00013917,2]
[331818485,1720770667087,-431.54,0.00013917,2]
[331818486,1720770667097,-1262.99,0.00013917,2]
[331818487,1720770667107,-500.0,0.00013917,2]
[331818488,1720770667118,-226.24,0.00013917,2]
[331818489,1720770667131,-502.52,0.00013917,2]
[331818490,1720770667140,-530.43,0.00013917,2]
[331818491,1720770667150,-500.0,0.00013917,2]
[331818492,1720770667161,-401.74,0.00013917,2]
[331818493,1720770667173,-500.0,0.00013917,2]
[331818494,1720770667184,-378.07254087,0.00013917,2]
[331818495,1720770667195,-500.0,0.00013917,2]
[331818496,1720770667204,-1950.33,0.00013917,2]
[331818497,1720770667214,-691.94,0.00013917,2]
[331818498,1720770667224,-500.0,0.00013917,2]
[331818499,1720770667234,-952.38,0.00013917,2]
[331818500,1720770667243,-500.0,0.00013917,2]
[331818501,1720770667256,-500.0,0.00013917,2]
[331818502,1720770667266,-500.0,0.00013917,2]
[331818503,1720770667275,-500.0,0.00013917,2]
[331818504,1720770667285,-500.0,0.00013917,2]
[331818505,1720770667295,-500.0,0.00013917,2]
[331818506,1720770667304,-500.0,0.00013917,2]
[331818507,1720770667314,-500.0,0.00013917,2]
[331818508,1720770667323,-312.76,0.00013917,2]
[331818509,1720770667333,-500.0,0.00013917,2]
[331818510,1720770667342,-518.66,0.00013917,2]
[331818511,1720770667352,-561.40438107,0.00013917,2]
[331818512,1720770667361,-500.0,0.00013917,2]
[331818513,1720770667371,-500.0,0.00013917,2]
[331818514,1720770667380,-500.0,0.00013917,2]
[331818515,1720770667390,-500.0,0.00013917,2]
[331818516,1720770667399,-500.0,0.00013917,2]
[331818517,1720770667409,-500.0,0.00013917,2]
[331818518,1720770667418,-500.0,0.00013917,2]
[331818519,1720770667427,-537.93,0.00013917,2]
[331818520,1720770667437,-500.0,0.00013917,2]
[331818521,1720770667446,-627.01,0.00013917,2]
[331818522,1720770667455,-500.0,0.00013917,2]
[331818523,1720770667465,-390.42,0.00013917,2]
[331818524,1720770667474,-531.17,0.00013917,2]
[331818525,1720770667484,-530.08,0.00013917,2]
[331818526,1720770667493,-500.0,0.00013917,2]
[331818527,1720770667505,-261.76,0.00013917,2]
[331818528,1720770667514,-41064.53,0.00013927,2]
[331818529,1720770667523,-476.02,0.00013971,2]
[331818530,1720770667534,-500.0,0.00013971,2]
[331818531,1720770667545,-500.0,0.00013972,2]
[331818532,1720770667555,-500.0,0.00013972,2]
[331818533,1720770667565,-500.0,0.00013972,2]
[331818534,1720770667574,-210.32,0.00013972,2]
[331818535,1720770667584,-500.0,0.00013972,2]
[331818536,1720770667593,-500.0,0.00013972,2]
[331818537,1720770667607,-500.0,0.00013972,2]
[331818538,1720770667617,-500.0,0.00013972,2]
[331818539,1720770667628,-606.24,0.00013972,2]
[331818540,1720770667640,-500.0,0.00013972,2]
[331818541,1720770667652,-500.0,0.00013972,2]
[331818542,1720770667663,-500.0,0.00013972,2]
[331818543,1720770667675,-500.0,0.00013972,2]
[331818544,1720770667685,-500.0,0.00013972,2]
[331818545,1720770667696,-396.42,0.00013972,2]
[331818546,1720770667706,-227.71,0.00013972,2]
[331818547,1720770667716,-500.0,0.00013972,2]
[331818548,1720770667727,-500.0,0.00013972,2]
[331818549,1720770667738,-500.0,0.00013972,2]
[331818550,1720770667749,-500.0,0.00013972,2]
[331818551,1720770667758,-500.0,0.00013972,2]
[331818552,1720770667767,-500.0,0.00013972,2]
[331818553,1720770667777,-641.97,0.00013972,2]
[331818554,1720770667786,-467.42,0.00013972,2]
[331818555,1720770667842,-264.4,0.00013972,2]
[331818556,1720770667851,-500.0,0.00013972,2]
[331818557,1720770667860,-500.0,0.00013972,2]
[331818558,1720770667871,-500.0,0.00013972,2]
[331818559,1720770667881,-243.59,0.00013972,2]
[331818560,1720770667891,-500.0,0.00013972,2]
[331818561,1720770667902,-500.0,0.00013972,2]
[331818562,1720770667914,-500.0,0.00013972,2]
[331818563,1720770667924,-500.0,0.00013972,2]
[331818564,1720770667934,-500.0,0.00013972,2]
[331818565,1720770667944,-536.0,0.00013972,2]
[331818566,1720770667956,-500.0,0.00013972,2]
[331818567,1720770667967,-680.79,0.00013972,2]
[331818568,1720770667979,-500.0,0.00013972,2]
[331818569,1720770667991,-500.0,0.00013972,2]
[331818570,1720770668001,-500.0,0.00013972,2]
[331818571,1720770668010,-500.0,0.00013972,2]
[331818572,1720770668019,-500.0,0.00013972,2]
[331818573,1720770668030,-500.0,0.00013972,2]
[331818574,1720770668040,-500.0,0.00013972,2]
[331818575,1720770668050,-500.0,0.00013972,2]
[331818576,1720770668061,-500.0,0.00013972,2]
[331818577,1720770668074,-500.0,0.00013972,2]
[331818578,1720770668084,-500.0,0.00013972,2]
[331818579,1720770668093,-500.0,0.00013972,2]
[331818580,1720770668102,-159.25,0.00013972,2]
[331818581,1720770668112,-725.57,0.00013972,2]
[331818582,1720770668123,-500.0,0.00013972,2]
[331818583,1720770668132,-500.0,0.00013972,2]
[331818584,1720770668142,-705.63,0.00013972,2]
[331818585,1720770668151,-601.0,0.00013972,2]
[331818586,1720770668161,-500.0,0.00013972,2]
[331818587,1720770668170,-259.18,0.00013972,2]
[331818588,1720770668179,-255.42,0.00013972,2]
[331818589,1720770668188,-500.0,0.00013972,2]
[331818590,1720770668197,-552.82,0.00013972,2]
[331818591,1720770668206,-500.0,0.00013972,2]
[331818592,1720770668215,-500.0,0.00013972,2]
[331818593,1720770668224,-500.0,0.00013972,2]
[331818594,1720770668233,-517.74775806,0.00013972,2]
[331818595,1720770668242,-500.0,0.00013972,2]
[331818596,1720770668253,-500.0,0.00013972,2]
[331818597,1720770668262,-280.62,0.00013972,2]
[331818598,1720770668272,-500.0,0.00013972,2]
[331818599,1720770668281,-500.0,0.00013972,2]
[331818600,1720770668292,-585.17,0.00013972,2]
[331818601,1720770668302,-500.0,0.00013972,2]
[331818602,1720770668313,-500.0,0.00013972,2]
[331818603,1720770668323,-500.0,0.00013972,2]
[331818604,1720770668333,-500.0,0.00013972,2]
[331818605,1720770668344,-500.0,0.00013972,2]
[331818606,1720770668355,-419.7,0.00013972,2]
[331818607,1720770668366,-500.0,0.00013972,2]
[331818608,1720770668376,-556.86,0.00013972,2]
[331818609,1720770668386,-500.0,0.00013972,2]
[331818610,1720770668395,-500.0,0.00013972,2]
[331818611,1720770668406,-500.0,0.00013972,2]
[331818612,1720770668417,-500.0,0.00013972,2]
[331818613,1720770668427,-542.1,0.00013972,2]
[331818614,1720770668438,-500.0,0.00013972,2]
[331818615,1720770668448,-500.0,0.00013972,2]
[331818616,1720770668458,-170.68,0.00013972,2]
[331818617,1720770668467,-865.7,0.00013972,2]
[331818618,1720770668478,-500.0,0.00013972,2]
[331818619,1720770668487,-642.78,0.00013972,2]
[331818620,1720770668499,-423.28039478,0.00013972,2]
[331818621,1720770668508,-500.0,0.00013972,2]
[331818622,1720770668518,-500.0,0.00013972,2]
[331818623,1720770668527,-500.0,0.00013972,2]
[331818624,1720770668536,-500.0,0.00013972,2]
[331818625,1720770668545,-500.0,0.00013972,2]
[331818626,1720770668555,-500.0,0.00013972,2]
[331818627,1720770668564,-533.56,0.00013972,2]
[331818628,1720770668573,-665.27,0.00013972,2]
[331818629,1720770668582,-500.0,0.00013972,2]
[331818630,1720770668592,-500.0,0.00013972,2]
[331818631,1720770668607,-539.93,0.00013972,2]
[331818632,1720770668616,-500.0,0.00013972,2]
[331818633,1720770668626,-500.0,0.00013972,2]
[331818634,1720770668636,-500.0,0.00013972,2]
[331818635,1720770668648,-659.81,0.00013972,2]
[331818636,1720770668660,-500.0,0.00013972,2]
[331818637,1720770668670,-500.0,0.00013972,2]
[331818638,1720770668683,-1805.19,0.00013972,2]
[331818639,1720770668692,-500.0,0.00013972,2]
[331818640,1720770668701,-500.0,0.00013972,2]
[331818641,1720770668711,-363.18,0.00013972,2]
[331818642,1720770668721,-500.0,0.00013972,2]
[331818643,1720770668732,-500.0,0.00013972,2]
[331818644,1720770668743,-500.0,0.00013972,2]
[331818645,1720770668753,-500.0,0.00013972,2]
[331818646,1720770668763,-378.34,0.00013972,2]
[331818647,1720770668772,-500.0,0.00013972,2]
[331818648,1720770668781,-637.4,0.00013972,2]
[331818649,1720770668791,-274.95432156,0.00013972,2]
[331818650,1720770668800,-511.46,0.00013972,2]
[331818651,1720770668809,-500.0,0.00013972,2]
[331818652,1720770668819,-500.0,0.00013972,2]
[331818653,1720770668827,-622.5,0.00013972,2]
[331818654,1720770668836,-500.95,0.00013972,2]
[331818655,1720770668846,-500.0,0.00013972,2]
[331818656,1720770668854,-500.0,0.00013972,2]
[331818657,1720770668864,-500.0,0.00013972,2]
[331818658,1720770668873,-500.0,0.00013972,2]
[331818659,1720770668883,-500.0,0.00013972,2]
[331818660,1720770668892,-809.25,0.00013972,2]
[331818661,1720770668901,-500.0,0.00013972,2]
[331818662,1720770668911,-500.0,0.00013972,2]
[331818663,1720770668921,-500.0,0.00013972,2]
[331818664,1720770668930,-500.0,0.00013972,2]
[331818665,1720770668939,-500.0,0.00013972,2]
[331818666,1720770668948,-500.0,0.00013972,2]
[331818667,1720770668958,-500.0,0.00013972,2]
[331818668,1720770668967,-500.0,0.00013972,2]
[331818669,1720770668976,-500.0,0.00013972,2]
[331818670,1720770668986,-304.97,0.00013972,2]
[331818671,1720770668995,-717.13,0.00013972,2]
[331818672,1720770669005,-500.0,0.00013972,2]
[331818673,1720770669014,-500.0,0.00013972,2]
[331818674,1720770669028,-500.0,0.00013972,2]
[331818675,1720770669038,-500.0,0.00013972,2]
[331818676,1720770669047,-685.24,0.00013972,2]
[331818677,1720770669056,-546.44,0.00013972,2]
[331818678,1720770669066,-500.0,0.00013972,2]
[331818679,1720770669075,-500.0,0.00013972,2]
[331818680,1720770669084,-500.0,0.00013972,2]
[331818681,1720770669093,-500.0,0.00013972,2]
[331818682,1720770669102,-500.0,0.00013972,2]
[331818683,1720770669112,-183.83,0.00013972,2]
[331818684,1720770669121,-1262.99,0.00013972,2]
[331818685,1720770669131,-488.32,0.00013972,2]
[331818686,1720770669140,-502.52,0.00013972,2]
[331818687,1720770669150,-530.43,0.00013972,2]
[331818688,1720770669159,-500.0,0.00013972,2]
[331818689,1720770669168,-249.62,0.00013972,2]
[331818690,1720770669178,-500.0,0.00013972,2]
[331818691,1720770669187,-1950.33,0.00013972,2]
[331818692,1720770669196,-691.94,0.00013972,2]
[331818693,1720770669205,-445.48,0.00013972,2]
[331818694,1720770669214,-952.38,0.00013972,2]
[331818695,1720770669223,-500.0,0.00013972,2]
[331818696,1720770669233,-500.0,0.00013972,2]
[331818697,1720770669242,-500.0,0.00013972,2]
[331818698,1720770669252,-500.0,0.00013972,2]
[331818699,1720770669261,-500.0,0.00013972,2]
[331818700,1720770669270,-500.0,0.00013972,2]
[331818701,1720770669279,-545.28,0.00013972,2]
[331818702,1720770669288,-500.0,0.00013972,2]
[331818703,1720770669298,-355.54,0.00013972,2]
[331818704,1720770669308,-500.0,0.00013972,2]
[331818705,1720770669317,-500.0,0.00013972,2]
[331818706,1720770669327,-500.0,0.00013972,2]
[331818707,1720770669336,-500.0,0.00013972,2]
[331818708,1720770669345,-500.0,0.00013972,2]
[331818709,1720770669355,-500.0,0.00013972,2]
[331818710,1720770669363,-500.0,0.00013972,2]
[331818711,1720770669373,-537.93,0.00013972,2]
[331818712,1720770669382,-500.0,0.00013972,2]
[331818713,1720770669391,-500.0,0.00013972,2]
[331818714,1720770669400,-531.17,0.00013972,2]
[331818715,1720770669410,-530.08,0.00013972,2]
[331818716,1720770669419,-172.04,0.00013972,2]
[331818717,1720770669428,-167.29932255,0.00013989,2]
[331818718,1720770669437,-385.96925274,0.00013992,2]
[331818719,1720770669446,-500.0,0.00013998,2]
[331818720,1720770669455,-2000.0,0.00014,2]
[331818721,1720770669464,-2000.0,0.00014,2]
[331818722,1720770669473,-1007.96,0.00014,2]
[331818723,1720770669482,-302.84,0.00014,2]
[331818724,1720770669490,-500.0,0.00014025,2]
[331818725,1720770669499,-500.0,0.00014026,2]
[331818726,1720770669509,-500.0,0.00014027,2]
[331818727,1720770669518,-500.0,0.00014027,2]
[331818728,1720770669527,-500.0,0.00014027,2]
[331818729,1720770669536,-527.48,0.00014027,2]
[331818730,1720770669545,-500.0,0.00014027,2]
[331818731,1720770669554,-217.88065145,0.00014027,2]
[331818732,1720770669563,-500.0,0.00014027,2]
[331818733,1720770669572,-500.0,0.00014027,2]
[331818734,1720770669582,-500.0,0.00014027,2]
[331818735,1720770669591,-501.74,0.00014027,2]
[331818736,1720770669604,-500.0,0.00014027,2]
[331818737,1720770669614,-399.86,0.00014027,2]
[331818738,1720770669623,-500.0,0.00014027,2]
[331818739,1720770669633,-500.0,0.00014027,2]
[331818740,1720770669643,-500.0,0.00014027,2]
[331818741,1720770669652,-500.0,0.00014027,2]
[331818742,1720770669661,-500.0,0.00014027,2]
[331818743,1720770669671,-500.0,0.00014027,2]
[331818744,1720770669681,-641.97,0.00014027,2]
[331818745,1720770669690,-500.0,0.00014027,2]
[331818746,1720770669699,-558.02,0.00014027,2]
[331818747,1720770669709,-500.0,0.00014027,2]
[331818748,1720770669721,-500.0,0.00014027,2]
[331818749,1720770669731,-500.0,0.00014027,2]
[331818750,1720770669741,-254.0,0.00014027,2]
[331818751,1720770669751,-500.0,0.00014027,2]
[331818752,1720770669761,-500.0,0.00014027,2]
[331818753,1720770669770,-500.0,0.00014027,2]
[331818754,1720770669780,-680.79,0.00014027,2]
[331818755,1720770669789,-291.56,0.00014027,2]
[331818756,1720770669800,-500.0,0.00014027,2]
[331818757,1720770669810,-500.0,0.00014027,2]
[331818758,1720770669819,-500.0,0.00014027,2]
[331818759,1720770669829,-500.0,0.00014027,2]
[331818760,1720770669840,-500.0,0.00014027,2]
[331818761,1720770669850,-500.0,0.00014027,2]
[331818762,1720770669860,-500.0,0.00014027,2]
[331818763,1720770669870,-500.0,0.00014027,2]
[331818764,1720770669879,-500.0,0.00014027,2]
[331818765,1720770669888,-500.0,0.00014027,2]
[331818766,1720770669897,-500.0,0.00014027,2]
[331818767,1720770669906,-159.25,0.00014027,2]
[331818768,1720770669915,-725.57,0.00014027,2]
[331818769,1720770669924,-150.86057926,0.00014027,2]
[331818770,1720770669933,-400.76,0.00014027,2]
[331818771,1720770669943,-705.63,0.00014027,2]
[331818772,1720770669952,-500.0,0.00014027,2]
[331818773,1720770669962,-500.0,0.00014027,2]
[331818774,1720770669971,-552.82,0.00014027,2]
[331818775,1720770669980,-500.0,0.00014027,2]
[331818776,1720770669989,-536.98,0.00014027,2]
[331818777,1720770669999,-500.0,0.00014027,2]
[331818778,1720770670009,-500.0,0.00014027,2]
[331818779,1720770670018,-500.0,0.00014027,2]
[331818780,1720770670028,-427.84,0.00014027,2]
[331818781,1720770670038,-151.0,0.00014027,2]
[331818782,1720770670048,-500.0,0.00014027,2]
[331818783,1720770670057,-151.0,0.00014027,2]
[331818784,1720770670067,-585.17,0.00014027,2]
[331818785,1720770670076,-500.0,0.00014027,2]
[331818786,1720770670087,-151.0,0.00014027,2]
[331818787,1720770670097,-500.0,0.00014027,2]
[331818788,1720770670106,-500.0,0.00014027,2]
[331818789,1720770670116,-500.0,0.00014027,2]
[331818790,1720770670125,-576.7001274,0.00014027,2]
[331818791,1720770670135,-500.0,0.00014027,2]
[331818792,1720770670144,-556.86,0.00014027,2]
[331818793,1720770670154,-500.0,0.00014027,2]
[331818794,1720770670164,-500.0,0.00014027,2]
[331818795,1720770670173,-208.97769198,0.00014027,2]
[331818796,1720770670197,-291.02230802,0.00014027,2]
[331818797,1720770670207,-500.0,0.00014027,2]
[331818798,1720770670218,-500.0,0.00014027,2]
[331818799,1720770670227,-151.0,0.00014027,2]
[331818800,1720770670239,-500.0,0.00014027,2]
[331818801,1720770670249,-865.7,0.00014027,2]
[331818802,1720770670259,-500.0,0.00014027,2]
[331818803,1720770670268,-390.48,0.00014027,2]
[331818804,1720770670278,-224.32920843,0.00014027,2]
[331818805,1720770670290,-275.67079157,0.00014027,2]
[331818806,1720770670301,-438.54584179,0.00014027,2]
[331818807,1720770670313,-61.45415821,0.00014027,2]
[331818808,1720770670323,-500.0,0.00014027,2]
[331818809,1720770670334,-500.0,0.00014027,2]
[331818810,1720770670344,-500.0,0.00014027,2]
[331818811,1720770670355,-151.0,0.00014027,2]
[331818812,1720770670367,-665.27,0.00014027,2]
[331818813,1720770670376,-500.0,0.00014027,2]
[331818814,1720770670388,-500.0,0.00014027,2]
[331818815,1720770670399,-539.93,0.00014027,2]
[331818816,1720770670410,-500.0,0.00014027,2]
[331818817,1720770670419,-500.0,0.00014027,2]
[331818818,1720770670429,-153.77614204,0.00014027,2]
[331818819,1720770670443,-346.22385796,0.00014027,2]
[331818820,1720770670452,-151.0,0.00014027,2]
[331818821,1720770670463,-659.81,0.00014027,2]
[331818822,1720770670473,-151.0,0.00014027,2]
[331818823,1720770670483,-500.0,0.00014027,2]
[331818824,1720770670492,-500.0,0.00014027,2]
[331818825,1720770670502,-1805.19,0.00014027,2]
[331818826,1720770670511,-500.0,0.00014027,2]
[331818827,1720770670521,-500.0,0.00014027,2]
[331818828,1720770670531,-500.0,0.00014027,2]
[331818829,1720770670540,-500.0,0.00014027,2]
[331818830,1720770670549,-500.0,0.00014027,2]
[331818831,1720770670558,-500.0,0.00014027,2]
[331818832,1720770670568,-500.0,0.00014027,2]
[331818833,1720770670577,-511.46,0.00014027,2]
[331818834,1720770670586,-500.0,0.00014027,2]
[331818835,1720770670595,-500.0,0.00014027,2]
[331818836,1720770670607,-500.0,0.00014027,2]
[331818837,1720770670616,-500.0,0.00014027,2]
[331818838,1720770670625,-500.0,0.00014027,2]
[331818839,1720770670635,-500.0,0.00014027,2]
[331818840,1720770670645,-500.0,0.00014027,2]
[331818841,1720770670655,-809.25,0.00014027,2]
[331818842,1720770670664,-641.42,0.00014027,2]
[331818843,1720770670675,-335.98959695,0.00014027,2]
[331818844,1720770670684,-500.0,0.00014027,2]
[331818845,1720770670694,-500.0,0.00014027,2]
[331818846,1720770670704,-500.0,0.00014027,2]
[331818847,1720770670713,-500.0,0.00014027,2]
[331818848,1720770670723,-279.34,0.00014027,2]
[331818849,1720770670732,-500.0,0.00014027,2]
[331818850,1720770670741,-500.0,0.00014027,2]
[331818851,1720770670752,-717.13,0.00014027,2]
[331818852,1720770670763,-500.0,0.00014027,2]
[331818853,1720770670774,-500.0,0.00014027,2]
[331818854,1720770670785,-500.0,0.00014027,2]
[331818855,1720770670795,-500.0,0.00014027,2]
[331818856,1720770670806,-685.24,0.00014027,2]
[331818857,1720770670816,-546.44,0.00014027,2]
[331818858,1720770670826,-500.0,0.00014027,2]
[331818859,1720770670836,-500.0,0.00014027,2]
[331818860,1720770670847,-500.0,0.00014027,2]
[331818861,1720770670857,-500.0,0.00014027,2]
[331818862,1720770670867,-500.0,0.00014027,2]
[331818863,1720770670876,-1262.99,0.00014027,2]
[331818864,1720770670887,-502.52,0.00014027,2]
[331818865,1720770670896,-530.43,0.00014027,2]
[331818866,1720770670907,-500.0,0.00014027,2]
[331818867,1720770670919,-567.88,0.00014027,2]
[331818868,1720770670930,-1950.33,0.00014027,2]
[331818869,1720770670941,-691.94,0.00014027,2]
[331818870,1720770670952,-952.38,0.00014027,2]
[331818871,1720770670963,-500.0,0.00014027,2]
[331818872,1720770670974,-392.04,0.00014027,2]
[331818873,1720770670985,-500.0,0.00014027,2]
[331818874,1720770670997,-500.0,0.00014027,2]
[331818875,1720770671012,-500.0,0.00014027,2]
[331818876,1720770671024,-500.0,0.00014027,2]
[331818877,1720770671033,-500.0,0.00014027,2]